Workbook

Sheet mda_experient
A1: YEARDUM | B1: 1 | C1: 2 | D1: 3 | E1: 4 | F1: 5 | G1: 6 | H1: 7 | I1: 8 | J1: MULT | N1: 1 | O1: 2 | P1: 3 | Q1: 4 | R1: 5 | S1: 6 | T1: 7 | U1: 8 | Y1: 1 | Z1: 2 | AA1: 3 | AB1: 4 | AC1: 5 | AD1: 6 | AE1: 7 | AF1: 8
A2: FMERCODE | B2: 1 | C2: 1 | D2: 1 | E2: 1 | F2: 1 | G2: 1 | H2: 1 | I2: 1 | J2: 40 | K2: =J2/10 -> 4
A3: PROD | B3: =B7:I10^K2 -> 3836.179582 | C3: 2657.649946 | D3: 6330.812009 | E3: 2855.416783 | F3: 3232.104423 | G3: 413.719668 | H3: 364.6915896 | I3: 2793.429038
A4: AREA | B4: 39.0625 | C4: 39.0625 | D4: 39.0625 | E4: 39.0625 | F4: 39.0625 | G4: 39.0625 | H4: 25.62890625 | I4: 21.36750625 | J4: =AH15 -> 0.4368073107 | K4: PI-I | M4: AREA | N4: =MMULT(B4:I6,B26:I33) -> 0.01018265677 | O4: 0.01469813587 | P4: 0.006170219546 | Q4: 0.01368013953 | R4: 0.01208577908 | S4: 0.0944177979 | T4: 0.07027556154 | U4: 0.007649203168 | V4: =SUM(O4:U4) -> 0.2189768366 | X4: AREA | Y4: =MMULT(N4:U6,N26:U33) -> 0.01018265677 | Z4: 0.02939627174 | AA4: 0.01851065864 | AB4: 0.05472055811 | AC4: 0.06042889538 | AD4: 0.5665067874 | AE4: 0.7129418765 | AF4: 0.1007261715
A5: LABOR | B5: 671898241 | C5: 362673936 | D5: 384160000 | E5: 260144641 | F5: 442050625 | G5: 228886641 | H5: 236421376 | I5: 57289761 | J5: =AH21 -> 0.5631926893 | K5: PI-II | M5: LABOR | N5: 175147.7549 | O5: 136464.1482 | P5: 60680.99944 | Q5: 91105.66364 | R5: 136768.6706 | S5: 553240.8988 | T5: 648277.5659 | U5: 20508.75831 | V5: =SUM(O5:U5) -> 1647046.705 | X5: LABOR | Y5: 175147.7549 | Z5: 389280.8301 | AA5: 224099.5586 | AB5: 587962.0894 | AC5: 656206.3491 | AD5: 5679725.345 | AE5: 7091568.694 | AF5: 946336.9875
A6: NPK | B6: 1853840664 | C6: 7624826060 | D6: 1.726760254e+10 | E6: 13051691536 | F6: 1.297463379e+10 | G6: 1843142886 | H6: 14166950625 | I6: 2464113715 | M6: NPK | N6: 483251.7938 | O6: 2869010.673 | P6: 2727549.407 | Q6: 4570853.408 | R6: 4014299.074 | S6: 4455052.608 | T6: 38846387 | U6: 882110.7253 | V6: 58365262.89 | X6: NPK | Y6: 483251.7938 | Z6: 3566559.523 | AA6: 4224777.047 | AB6: 13937706.41 | AC6: 16327626.74 | AD6: 132011460.2 | AE6: 188605084.6 | AF6: 25505141.11
A7: PROD | B7: 7.87 | C7: 7.18 | D7: 8.92 | E7: 7.31 | F7: 7.54 | G7: 4.51 | H7: 4.37 | I7: 7.27
A8: AREA | B8: 2.5 | C8: 2.5 | D8: 2.5 | E8: 2.5 | F8: 2.5 | G8: 2.5 | H8: 2.25 | I8: 2.15
A9: LABOR | B9: 161 | C9: 138 | D9: 140 | E9: 127 | F9: 145 | G9: 123 | H9: 124 | I9: 87
A10: NPK | B10: 207.5 | C10: 295.5 | D10: 362.5 | E10: 338 | F10: 337.5 | G10: 207.2 | H10: 345 | I10: 222.8
X12: AREA | Z12: =Z4-Y4 -> 0.01921361497 | AA12: -0.0108856131 | AB12: 0.03620989947 | AC12: 0.005708337272 | AD12: 0.506077892 | AE12: 0.1464350891 | AF12: -0.612215705 | AG12: =SUM(Z12:AF12) -> 0.09054351476 | AH12: =AG12/V4 -> 0.4134844404
B13: 1 | C13: 2 | D13: 3 | E13: 4 | F13: 5 | G13: 6 | H13: 7 | I13: 8 | N13: 1 | O13: 2 | P13: 3 | Q13: 4 | R13: 5 | S13: 6 | T13: 7 | U13: 8 | X13: LABOR | Z13: 214133.0752 | AA13: -165181.2715 | AB13: 363862.5308 | AC13: 68244.25968 | AD13: 5023518.996 | AE13: 1411843.35 | AF13: -6145231.707 | AG13: =SUM(Z13:AF13) -> 771189.2326 | AH13: =AG13/V5 -> 0.4682254792
A14: 1 | B14: =B3 -> 3836.179582 | C14: =-B14 -> -3836.179582 | D14: 0 | E14: 0 | F14: 0 | G14: 0 | H14: 0 | I14: 0 | M14: 1 | N14: =MMULT(B14:I21,B26:I33) -> 1 | O14: -1.443448031 | P14: 0 | Q14: 0 | R14: 0 | S14: 0 | T14: 0 | U14: 0 | X14: NPK | Z14: 3083307.73 | AA14: 658217.5233 | AB14: 9712929.362 | AC14: 2389920.329 | AD14: 115683833.4 | AE14: 56593624.4 | AF14: -163099943.5 | AG14: 25021889.32 | AH14: =AG14/V6 -> 0.4287120126
A15: 2 | B15: 0 | C15: =C3 -> 2657.649946 | D15: =-C15 -> -2657.649946 | E15: 0 | F15: 0 | G15: 0 | H15: 0 | I15: 0 | M15: 2 | N15: 0 | O15: 1 | P15: -0.4197960612 | Q15: 0 | R15: 0 | S15: 0 | T15: 0 | U15: 0 | AH15: =AVERAGE(AH12:AH14) -> 0.4368073107
A16: 3 | B16: 0 | C16: 0 | D16: =D3 -> 6330.812009 | E16: =-D16 -> -6330.812009 | F16: 0 | G16: 0 | H16: 0 | I16: 0 | M16: 3 | N16: 0 | O16: 0 | P16: 1 | Q16: -2.217123625 | R16: 0 | S16: 0 | T16: 0 | U16: 0
A17: 4 | B17: 0 | C17: 0 | D17: 0 | E17: =E3 -> 2855.416783 | F17: =-E17 -> -2855.416783 | G17: 0 | H17: 0 | I17: 0 | M17: 4 | N17: 0 | O17: 0 | P17: 0 | Q17: 1 | R17: -0.8834543721 | S17: 0 | T17: 0 | U17: 0
A18: 5 | B18: 0 | C18: 0 | D18: 0 | E18: 0 | F18: =F3 -> 3232.104423 | G18: =-F18 -> -3232.104423 | H18: 0 | I18: 0 | M18: 5 | N18: 0 | O18: 0 | P18: 0 | Q18: 0 | R18: 1 | S18: -7.812305463 | T18: 0 | U18: 0 | X18: AREA | Z18: =O4-Z12 -> -0.004515479098 | AA18: 0.01705583265 | AB18: -0.02252975994 | AC18: 0.006377441803 | AD18: -0.4116600941 | AE18: -0.0761595276 | AF18: 0.6198649082 | AG18: 0.1284333219 | AH18: =AG18/V4 -> 0.5865155596
A19: 6 | B19: 0 | C19: 0 | D19: 0 | E19: 0 | F19: 0 | G19: =G3 -> 413.719668 | H19: =-G19 -> -413.719668 | I19: 0 | M19: 6 | N19: 0 | O19: 0 | P19: 0 | Q19: 0 | R19: 0 | S19: 1 | T19: -1.134437096 | U19: 0 | X19: LABOR | Z19: -77668.92705 | AA19: 225862.2709 | AB19: -272756.8671 | AC19: 68524.41089 | AD19: -4470278.097 | AE19: -763565.7839 | AF19: 6165740.465 | AG19: 875857.4722 | AH19: =AG19/V5 -> 0.5317745208
A20: 7 | B20: 0 | C20: 0 | D20: 0 | E20: 0 | F20: 0 | G20: 0 | H20: =H3 -> 364.6915896 | I20: =-H20 -> -364.6915896 | M20: 7 | N20: 0 | O20: 0 | P20: 0 | Q20: 0 | R20: 0 | S20: 0 | T20: 1 | U20: -0.1305533753 | X20: NPK | Z20: -214297.0565 | AA20: 2069331.883 | AB20: -5142075.954 | AC20: 1624378.745 | AD20: -111228780.8 | AE20: -17747237.4 | AF20: 163982054.2 | AG20: 33343373.57 | AH20: =AG20/V6 -> 0.5712879874
A21: 8 | B21: 0 | C21: 0 | D21: 0 | E21: 0 | F21: 0 | G21: 0 | H21: 0 | I21: =I3 -> 2793.429038 | M21: 8 | N21: 0 | O21: 0 | P21: 0 | Q21: 0 | R21: 0 | S21: 0 | T21: 0 | U21: 1 | AH21: =AVERAGE(AH18:AH20) -> 0.5631926893
B25: 1 | C25: 2 | D25: 3 | E25: 4 | F25: 5 | G25: 6 | H25: 7 | I25: 8 | N25: 1 | O25: 2 | P25: 3 | Q25: 4 | R25: 5 | S25: 6 | T25: 7 | U25: 8
A26: 1 | B26: =1/B3 -> 0.0002606760134 | C26: 0 | D26: 0 | E26: 0 | F26: 0 | G26: 0 | H26: 0 | I26: 0 | M26: 1 | N26: =MINVERSE(N14:U21) -> 1 | O26: 1.443448031 | P26: 0.6059537981 | Q26: 1.343474481 | R26: 1.186898404 | S26: 9.272412888 | T26: 10.51896915 | U26: 1.373286928
A27: 2 | B27: 0 | C27: =1/C3 -> 0.0003762722783 | D27: 0 | E27: 0 | F27: 0 | G27: 0 | H27: 0 | I27: 0 | M27: 2 | N27: 0 | O27: 1 | P27: 0.4197960612 | Q27: 0.930739765 | R27: 0.8222661147 | S27: 6.42379406 | T27: 7.287390281 | U27: 0.9513933983
A28: 3 | B28: 0 | C28: 0 | D28: =1/D3 -> 0.0001579576204 | E28: 0 | F28: 0 | G28: 0 | H28: 0 | I28: 0 | M28: 3 | N28: 0 | O28: 0 | P28: 1 | Q28: 2.217123625 | R28: 1.95872756 | S28: 15.30217802 | T28: 17.3593584 | U28: 2.266322832
A29: 4 | B29: 0 | C29: 0 | D29: 0 | E29: =1/E3 -> 0.0003502115719 | F29: 0 | G29: 0 | H29: 0 | I29: 0 | M29: 4 | N29: 0 | O29: 0 | P29: 0 | Q29: 1 | R29: 0.8834543721 | S29: 6.901815418 | T29: 7.829675442 | U29: 1.022190556
A30: 5 | B30: 0 | C30: 0 | D30: 0 | E30: 0 | F30: =1/F3 -> 0.0003093959443 | G30: 0 | H30: 0 | I30: 0 | M30: 5 | N30: 0 | O30: 0 | P30: 0 | Q30: 0 | R30: 1 | S30: 7.812305463 | T30: 8.862569126 | U30: 1.157038313
A31: 6 | B31: 0 | C31: 0 | D31: 0 | E31: 0 | F31: 0 | G31: =1/G3 -> 0.002417095626 | H31: 0 | I31: 0 | M31: 6 | N31: 0 | O31: 0 | P31: 0 | Q31: 0 | R31: 0 | S31: 1 | T31: 1.134437096 | U31: 0.148104592
A32: 7 | B32: 0 | C32: 0 | D32: 0 | E32: 0 | F32: 0 | G32: 0 | H32: =1/H3 -> 0.002742042944 | I32: 0 | M32: 7 | N32: 0 | O32: 0 | P32: 0 | Q32: 0 | R32: 0 | S32: 0 | T32: 1 | U32: 0.1305533753
A33: 8 | B33: 0 | C33: 0 | D33: 0 | E33: 0 | F33: 0 | G33: 0 | H33: 0 | I33: =1/I3 -> 0.0003579829615 | M33: 8 | N33: 0 | O33: 0 | P33: 0 | Q33: 0 | R33: 0 | S33: 0 | T33: 0 | U33: 1
A36: FARM 01
A37: INF | B37: POST
A38: 1 | B38: 40
A39: N | B39: PI-I | C39: PI-II
A40: 0.1 | B40: 0.9901978024 | C40: 0.009802197607
A41: 0.2 | B41: 0.980024375 | C41: 0.01997562502
A42: 0.3 | B42: 0.9694824767 | C42: 0.03051752332
A43: 0.4 | B43: 0.9585759563 | C43: 0.04142404366
A44: 0.5 | B44: 0.9473097811 | C44: 0.0526902189
A45: 0.6 | B45: 0.9356900589 | C45: 0.06430994115
A46: 0.7 | B46: 0.9237240546 | C46: 0.07627594543
A47: 0.8 | B47: 0.9114201999 | C47: 0.08857980012
A48: 0.9 | B48: 0.8987880956 | C48: 0.1012119044
A49: 1 | B49: 0.8858385066 | C49: 0.1141614934
A50: 1.1 | B50: 0.8725833491 | C50: 0.1274166509
A51: 1.2 | B51: 0.85903567 | C51: 0.14096433
A52: 1.3 | B52: 0.8452096167 | C52: 0.1547903833
A53: 1.4 | B53: 0.8311204006 | C53: 0.1688795994
A54: 1.5 | B54: 0.8167842497 | C54: 0.1832157503
A55: 1.6 | B55: 0.8022183544 | C55: 0.1977816456
A56: 1.7 | B56: 0.7874408041 | C56: 0.2125591959
A57: 1.8 | B57: 0.7724705159 | C57: 0.2275294841
A58: 1.9 | B58: 0.7573271557 | C58: 0.2426728443
A59: 2 | B59: 0.7420310515 | C59: 0.2579689485
A60: 2.1 | B60: 0.7266031005 | C60: 0.2733968995
A61: 2.2 | B61: 0.7110646704 | C61: 0.2889353296
A62: 2.3 | B62: 0.6954374952 | C62: 0.3045625048
A63: 2.4 | B63: 0.679743567 | C63: 0.320256433
A64: 2.5 | B64: 0.6640050253 | C64: 0.3359949747
A65: 2.6 | B65: 0.6482440434 | C65: 0.3517559566
A66: 2.7 | B66: 0.6324827153 | C66: 0.3675172847
A67: 2.8 | B67: 0.6167429423 | C67: 0.3832570577
A68: 2.9 | B68: 0.6010463216 | C68: 0.3989536784
A69: 3 | B69: 0.5854140384 | C69: 0.4145859616
A70: 3.1 | B70: 0.5698667618 | C70: 0.4301332382
A71: 3.2 | B71: 0.5544245461 | C71: 0.4455754539
A72: 3.3 | B72: 0.5391067394 | C72: 0.4608932606
A73: 3.4 | B73: 0.5239318982 | C73: 0.4760681018
A74: 3.5 | B74: 0.508917712 | C74: 0.491082288
A75: 3.6 | B75: 0.494080935 | C75: 0.505919065
A76: 3.7 | B76: 0.4794373287 | C76: 0.5205626713
A77: 3.8 | B77: 0.4650016132 | C77: 0.5349983868
A78: 3.9 | B78: 0.4507874296 | C78: 0.5492125704
A79: 4 | B79: 0.4368073107 | C79: 0.5631926893
